bitfinex-derivatives/quotes_SOLF0:USTF0_20250409
["timestamp","ask_amount","ask_price","bid_price","bid_amount"]
[1744162342003,95.7311,102.44,102.3,68.37998805]
[1744162342004,105.5005,102.44,102.38,9.7744]
[1744162342311,9.4711,102.44,102.37,67.6951707]
[1744162342916,0.07035608,102.42,102.39,67.76891861]
[1744162343104,0.07035608,102.42,102.39,0.07374791]
[1744162343304,0.07035608,102.42,102.37,67.6951707]
[1744162343506,0.07035608,102.42,102.35,67.6951707]
[1744162343811,67.6951707,102.45,102.39,0.07487058]
[1744162344011,4.7313,102.46,102.39,0.07487058]
[1744162344209,0.06688782,102.4,102.39,67.77004128]
[1744162344412,6.68328126,102.46,102.39,67.77004128]
[1744162344413,6.68328126,102.46,102.39,67.6951707]
[1744162344608,4.7313,102.46,102.42,67.6951707]
[1744162344815,9.5303,102.49,102.43,9.7695]
[1744162345016,4.4485,102.53,102.44,67.6951707]
[1744162345316,25.69034859,102.53,102.46,67.6951707]
[1744162345512,15.92944859,102.53,102.46,67.6951707]
[1744162345716,0.05884036,102.5,102.47,0.07023348]
[1744162345913,9.7652,102.49,102.47,0.07023348]
[1744162346116,0.05884036,102.5,102.47,0.07023348]
[1744162347422,1.95064859,102.53,102.49,67.6951707]
[1744162347715,1.95064859,102.53,102.48,67.6951707]
[1744162348109,1.95064859,102.53,102.46,67.6951707]
[1744162348306,1.95064859,102.53,102.48,67.6951707]
[1744162348509,13.9146,102.59,102.52,67.6951707]
[1744162348708,23.6705,102.59,102.52,67.6951707]
[1744162348918,13.9146,102.59,102.52,67.6951707]
[1744162349114,13.9146,102.59,102.53,9.7601]
[1744162349316,1.69698152,102.67,102.58,67.6951707]
[1744162349521,1.69698152,102.67,102.6,67.6951707]
[1744162349721,9.7491,102.66,102.6,67.6951707]
[1744162349922,422.4,102.68,102.61,67.6951707]
[1744162350120,422.4,102.68,102.62,0.07508445]
[1744162350619,69.6431594,102.67,102.56,67.6951707]
[1744162350812,3.68977021,102.66,102.54,67.6951707]
[1744162351122,67.6951707,102.64,102.52,67.6951707]
[1744162351419,10.91254792,102.63,102.53,67.6951707]
[1744162351919,0.06473933,102.59,102.57,0.07304695]
[1744162353722,0.06473933,102.59,102.57,67.76821765]
[1744162353923,1.94874792,102.63,102.57,67.76821765]
[1744162354222,9.5892,102.67,102.57,67.76821765]
[1744162354424,9.7539,102.61,102.57,0.07304695]
[1744162354625,1.94817845,102.66,102.55,67.6951707]
[1744162354826,1.94817845,102.66,102.57,67.6951707]
[1744162355027,9.751,102.64,102.57,77.4520707]
[1744162355328,1.94817845,102.66,102.59,0.06747746]
[1744162355715,37.20402431,102.93,102.56,9.0959]
[1744162355716,67.6951707,102.73,102.61,67.6951707]
[1744162355923,4.5981,102.7,102.63,67.6951707]
[1744162356122,4.5981,102.7,102.65,66.63245237]
[1744162356629,4.5981,102.7,102.66,0.07429565]
[1744162357017,4.5981,102.7,102.63,66.63245237]
[1744162357219,4.5981,102.7,102.67,0.06370781]
[1744162357625,4.5981,102.7,102.64,76.38215237]
[1744162357830,4.5981,102.7,102.67,0.07045506]
[1744162358030,9.7465,102.68,102.67,0.07045506]
[1744162358223,66.63245237,102.68,102.57,71.43795237]
[1744162358518,9.7522,102.62,102.56,9.7576]
[1744162358724,66.63245237,102.66,102.53,66.63245237]
[1744162358922,73.17294107,102.67,102.55,66.63245237]
[1744162359124,73.17294107,102.67,102.5,13.6108]
[1744162359125,66.63245237,102.65,102.53,66.63245237]
[1744162359438,0.07340573,102.62,102.51,66.63245237]
[1744162359733,0.07340573,102.62,102.53,66.63245237]
[1744162359917,4.6821,102.64,102.54,66.63245237]
[1744162360532,71.31455237,102.64,102.52,66.63245237]
[1744162360720,0.07396529,102.6,102.58,0.06270423]
[1744162362132,0.07396529,102.6,102.52,66.73214787]
[1744162362324,9.7568,102.58,102.52,76.49334787]
[1744162362521,66.73214787,102.61,102.5,80.34294787]
[1744162362825,9.7585,102.56,102.5,18.901]
[1744162363221,9.7616,102.53,102.47,9.7665]
[1744162363417,0.06292597,102.54,102.45,66.73214787]
[1744162363618,0.06292597,102.54,102.52,0.07247339]
[1744162363924,66.73214787,102.53,102.43,4.6708]
[1744162364122,4.5623,102.52,102.43,4.6708]
[1744162364531,66.73214787,102.51,102.38,76.03664787]
[1744162364825,66.73214787,102.47,102.38,4.6925]
[1744162365031,66.73214787,102.45,102.34,66.73214787]
[1744162365218,9.7728,102.41,102.34,9.7783]
[1744162365420,66.73214787,102.45,102.33,66.73214787]
[1744162365615,71.29444787,102.45,102.33,66.73214787]
[1744162366022,66.73214787,102.39,102.26,4.612]
[1744162366221,66.73214787,102.41,102.26,9.786]
[1744162366222,9.7805,102.33,102.26,9.786]
[1744162366417,66.73214787,102.35,102.25,4.6925]
[1744162366622,0.06965846,102.34,102.31,0.07039832]
[1744162366824,66.73214787,102.35,102.26,9.7865]
[1744162367026,66.73214787,102.39,102.27,66.73214787]
[1744162367221,66.73214787,102.39,102.21,552.612]
[1744162367431,66.73214787,102.37,102.25,66.73214787]
[1744162367622,1.95388823,102.36,102.25,66.73214787]
[1744162367825,66.73214787,102.35,102.23,66.73214787]
[1744162368018,0.06782941,102.32,102.22,4.8429]
[1744162368222,0.06782941,102.32,102.23,66.73214787]
[1744162368430,66.73214787,102.35,102.23,66.73214787]
[1744162368730,1.95427008,102.34,102.22,4.8429]
[1744162369032,66.73214787,102.33,102.22,4.8429]
[1744162369226,0.07270047,102.29,102.2,4.8252]
[1744162369442,9.7853,102.28,102.2,4.8252]
[1744162369728,66.73214787,102.29,102.18,66.73214787]
[1744162369923,9.7863,102.27,102.19,9.7926]
[1744162370321,9.7863,102.27,102.16,421.6]
[1744162370526,9.7866,102.26,102.17,66.73214787]
[1744162370724,0.06458097,102.23,102.2,0.06807541]
[1744162371126,66.73214787,102.25,102.14,4.7064]
[1744162371326,66.73214787,102.23,102.11,66.73214787]
[1744162371527,66.79666297,102.23,102.11,66.73214787]
[1744162371728,6.79666427,102.22,102.11,66.73214787]
[1744162371920,66.73214787,102.21,102.1,4.5852]
[1744162372128,66.73214787,102.21,102.1,62.0]
[1744162372734,0.06312748,102.17,102.14,0.06394713]
[1744162373137,0.06312748,102.17,102.09,488.79214787]
[1744162373437,6.79666427,102.22,102.14,0.07453351]
[1744162373933,0.06215447,102.19,102.1,66.73214787]
[1744162374127,0.06215447,102.19,102.17,0.06633712]
[1744162374434,1.95656427,102.22,102.14,66.73214787]
[1744162374633,0.07470822,102.19,102.17,0.06565448]
[1744162375038,68.68871214,102.22,102.12,66.73214787]
[1744162375232,0.0727835,102.19,102.17,0.06889183]
[1744162377736,9.7982,102.14,102.07,19.1874]
[1744162377936,9.7982,102.14,102.07,14.5105]
[1744162378134,66.73214787,102.17,102.07,4.7064]
[1744162378336,6.6780302,102.18,102.08,66.73214787]
[1744162378839,0.06881484,102.14,102.12,0.06946761]
[1744162379535,0.06881484,102.14,102.02,6.21723675]
[1744162379733,66.73214787,102.13,102.02,71.24504787]
[1744162379936,66.73214787,102.17,102.04,66.73214787]
[1744162380138,3.70159007,102.16,102.04,66.73214787]
[1744162380344,66.73214787,102.17,102.04,66.73214787]
[1744162380345,1.95790504,102.15,102.04,66.73214787]
[1744162380542,68.69005291,102.15,102.03,4.8739]
[1744162380844,66.80378192,102.11,101.99,66.73214787]
[1744162381233,66.73214787,102.09,101.97,66.73214787]
[1744162381438,66.73214787,102.07,101.98,9.8131]
[1744162381644,66.73214787,102.07,101.96,9.4419]
[1744162381835,66.73214787,102.09,101.97,66.73214787]
[1744162382036,9.1667,102.1,101.99,66.73214787]
[1744162382234,0.07101697,102.03,102.0,0.0733423]
[1744162382744,9.8059,102.06,101.97,66.73214787]
[1744162382949,1.648e-05,102.03,102.01,9.8106]
[1744162383144,1.648e-05,102.03,102.0,66.80006058]
[1744162383446,4.5627,102.13,102.02,66.73214787]
[1744162383936,4.5627,102.13,102.05,9.8061]
[1744162383937,9.8008,102.12,102.05,9.8061]
[1744162384250,0.06329592,102.09,102.06,0.06539498]
[1744162384446,0.06329592,102.09,102.08,9.8038]
[1744162384748,0.06329592,102.09,102.06,0.06539498]
[1744162385139,9.86629592,102.09,102.06,0.06539498]
[1744162385334,0.06329592,102.09,102.06,0.06539498]
[1744162385650,0.06329592,102.09,101.95,4.8891]
[1744162385845,1.95924764,102.08,101.97,66.73214787]
[1744162386348,68.69139551,102.08,101.97,66.73214787]
[1744162386644,68.69139551,102.08,101.98,9.8131]
[1744162387042,0.06418931,102.04,102.01,0.06810389]
[1744162387543,0.06418931,102.04,101.99,9.8122]
[1744162387742,9.87188931,102.04,102.01,0.06829029]
[1744162388138,66.73214787,102.06,102.01,0.06829029]
[1744162388448,66.73214787,102.06,101.91,66.73214787]
[1744162388449,66.73214787,102.02,101.91,66.73214787]
[1744162388644,66.73214787,102.0,101.89,13.8066]
[1744162388949,428.0976,102.01,101.92,66.73214787]
[1744162389149,428.0976,102.01,101.9,66.73214787]
[1744162389445,428.0976,102.01,101.92,66.73214787]
[1744162389646,66.80227183,101.98,101.84,423.36]
[1744162389849,0.07012396,101.98,101.92,66.73214787]
[1744162390042,359.0,102.05,101.88,66.73214787]
[1744162390043,9.2271,102.06,101.96,66.73214787]
[1744162390249,4.7376,102.07,101.96,66.73214787]
[1744162390443,1.95924764,102.08,101.98,66.73214787]
[1744162390845,0.06856595,102.04,101.98,66.73214787]
[1744162391046,1.95924764,102.08,102.02,66.73214787]
[1744162391247,1.95924764,102.08,102.04,66.73214787]
[1744162391447,9.7984,102.14,102.09,9.8024]
[1744162391749,423.54,102.15,101.95,920.2183]
[1744162391953,66.73214787,102.14,102.01,66.73214787]
[1744162392251,0.06900459,102.06,102.04,0.06822011]
[1744162392657,4.4512,102.13,102.03,66.73214787]
[1744162393042,4.4512,102.13,102.05,66.73214787]
[1744162393249,9.7986,102.14,102.07,66.73214787]
[1744162393544,66.73214787,102.19,102.12,9.7994]
[1744162393750,0.07311228,102.12,102.11,66.73214787]
[1744162394056,423.54,102.22,102.11,66.73214787]
[1744162394350,423.54,102.22,102.12,66.73214787]
[1744162394549,423.54,102.22,102.18,9.7941]
[1744162394747,66.73214787,102.26,102.14,66.73214787]
[1744162394946,4.7304,102.25,102.14,66.73214787]
[1744162395147,0.0680664,102.21,102.19,0.06758382]
[1744162395556,66.73214787,102.33,102.22,66.73214787]
[1744162395747,1.70254403,102.34,102.2,66.73214787]
[1744162395957,66.73214787,102.29,102.18,66.73214787]
[1744162396148,9.782,102.31,102.24,9.7878]
[1744162396351,66.73214787,102.33,102.21,66.73214787]
[1744162396549,66.73214787,102.31,102.19,3.91]
[1744162396755,9.7861,102.27,102.26,0.06587382]
[1744162396955,0.06319465,102.28,102.26,0.06587382]
[1744162397151,9.84799465,102.28,102.26,0.06587382]
[1744162397457,0.06319465,102.28,102.26,0.06587382]
[1744162398046,1.9556077,102.27,102.18,66.73214787]
[1744162398250,9.7891,102.24,102.17,13.0472]
[1744162398451,73.21305557,102.27,102.17,9.1515]
[1744162398949,6.4809077,102.27,102.17,9.1515]
[1744162399361,0.06461474,102.23,102.21,0.07461189]
[1744162399856,1.9556077,102.27,102.21,0.07461189]
[1744162400359,9.7869,102.26,102.21,0.07461189]
[1744162400559,1.9556077,102.27,102.21,0.07461189]
[1744162400966,0.06271799,102.25,102.21,0.07461189]
[1744162401164,66.73214787,102.33,102.21,0.07461189]
[1744162401165,359.0,102.44,102.24,66.73214787]
[1744162401352,66.73214787,102.34,102.22,66.73214787]
[1744162401558,66.73214787,102.3,102.19,3.8957]
[1744162402061,9.7892,102.24,102.17,9.1515]
[1744162402461,9.7892,102.24,102.23,0.06194462]
[1744162402664,66.80606616,102.26,102.17,9.1515]
[1744162402962,1.95599022,102.25,102.17,4.6021]
[1744162403352,1.95599022,102.25,102.13,70.62784787]
[1744162403551,1.95599022,102.25,102.06,977.73214787]
[1744162403552,66.73214787,102.22,102.11,66.73214787]
[1744162403763,4.4242,102.21,102.1,9.8016]
[1744162403964,0.07146184,102.18,102.15,0.06313964]
[1744162404258,9.7962,102.16,102.15,0.06313964]
[1744162404560,0.07146184,102.18,102.06,66.73214787]
[1744162404762,9.7977,102.15,102.08,76.53564787]
[1744162404965,66.73214787,102.16,102.04,75.16784787]
[1744162405156,66.73214787,102.14,102.04,4.5471]
[1744162405356,9.8031,102.09,102.04,4.5471]
[1744162405560,1.95828845,102.13,102.08,0.06616806]
[1744162405765,0.06193475,102.1,102.08,0.06616806]
[1744162405967,11.75768845,102.13,102.04,71.27924787]
[1744162406268,0.06604338,102.1,102.08,0.07264711]
[1744162407061,66.73214787,102.09,102.0,4.8594]
[1744162407460,71.19574787,102.11,102.0,4.8594]
[1744162407763,66.73214787,102.09,101.98,70.62074787]
[1744162407963,1.95924764,102.08,101.97,4.6581]
[1744162408159,9.8077,102.04,101.97,14.4719]
[1744162408364,0.07293222,102.05,102.02,0.06824142]
[1744162408664,66.73214787,102.07,101.97,4.6581]
[1744162408865,0.06195842,102.05,102.02,0.06267106]
[1744162409368,66.79410629,102.05,101.93,66.73214787]
[1744162409558,66.73214787,102.03,101.92,13.0719]
[1744162409756,66.73214787,102.01,101.92,9.1833]
[1744162409967,1.96039992,102.02,101.93,66.73214787]
[1744162410162,9.804,102.08,102.01,9.8103]
[1744162410471,66.73214787,102.14,102.03,66.73214787]
[1744162410668,0.06761027,102.06,102.03,0.07346295]
[1744162411167,66.73214787,102.12,102.01,66.73214787]
[1744162411466,0.07331943,102.06,102.03,0.06763068]
[1744162411667,0.07331943,102.06,102.01,66.73214787]
[1744162411863,9.8022,102.1,102.05,0.06801015]
[1744162412070,3.67278706,102.12,102.05,0.06801015]
[1744162412374,0.06558527,102.05,102.03,9.8085]
[1744162412562,1.95867202,102.11,102.07,0.07065507]
[1744162413070,1.95867202,102.11,102.09,9.8027]
[1744162413265,8.24406574,102.16,102.05,66.73214787]
[1744162413466,18.04046574,102.16,102.09,9.8022]
[1744162413760,4.5624,102.16,102.05,66.73214787]
[1744162413966,9.8,102.12,102.11,0.06226942]
[1744162414168,70.42022281,102.15,102.03,70.62954787]
[1744162414362,3.68807494,102.14,102.03,70.62954787]
[1744162414573,9.7983,102.14,102.05,66.73214787]
[1744162414770,3.68807494,102.15,102.05,66.73214787]
[1744162414971,8.25047494,102.16,102.05,66.73214787]
[1744162415470,0.06929697,102.12,102.09,0.06685088]
[1744162415972,0.06929697,102.12,102.03,70.62954787]
[1744162416165,0.06929697,102.12,102.09,0.0730735]
[1744162416362,8.25047494,102.16,102.03,70.62954787]
[1744162416666,0.06246072,102.12,102.09,0.06271999]
[1744162417172,0.06246072,102.12,102.02,4.4689]
[1744162417473,429.04655515,102.12,102.02,4.4689]
[1744162417668,425.35848021,102.12,102.02,4.4689]
[1744162417870,425.35848021,102.12,102.02,9.1518]
[1744162418369,1.95848021,102.12,102.07,66.73214787]
[1744162419269,3.69106698,102.16,102.09,66.73214787]
[1744162419471,3.69106698,102.17,102.07,66.73214787]
[1744162419663,3.69106698,102.17,102.09,9.8023]
[1744162419864,0.07325737,102.13,102.11,0.06928929]
[1744162421573,9.7948,102.18,102.11,0.06928929]
[1744162421875,425.73214787,102.29,102.17,66.73214787]
[1744162422076,13.32290301,102.28,102.19,66.73214787]
[1744162422266,8.51530301,102.28,102.19,66.73214787]
[1744162422467,8.51530301,102.28,102.23,9.7892]
[1744162422468,4.8222,102.28,102.23,9.7892]
[1744162422669,90.8222,102.28,102.19,66.73214787]
[1744162422871,3.76614187,102.27,102.17,152.73214787]
[1744162423174,70.42320815,102.27,102.15,66.73214787]
[1744162423473,3.69106028,102.26,102.15,66.73214787]
[1744162423661,3.68947932,102.26,102.13,94.5228]
[1744162423866,70.42162719,102.27,102.15,66.73214787]
[1744162424068,0.07014806,102.21,102.18,0.06505874]
[1744162424369,9.7908,102.22,102.15,66.73214787]
[1744162424675,0.06421005,102.21,102.18,0.06260285]
[1744162424968,0.06421005,102.21,102.13,161.25494787]
[1744162425171,0.06421005,102.21,102.18,0.06651666]
[1744162425473,0.06279487,102.21,102.18,0.06651666]
[1744162426173,66.73214787,102.3,102.19,66.73214787]
[1744162426370,3.68779977,102.29,102.19,66.73214787]
[1744162426570,6.62133421,102.3,102.21,66.73214787]
[1744162426870,6.62133421,102.3,102.23,66.73214787]
[1744162427076,1.95503421,102.3,102.25,66.73214787]
[1744162427280,90.6799,102.35,102.27,66.73214787]
[1744162427671,90.6799,102.35,102.29,9.7836]
[1744162427874,4.7199,102.35,102.27,66.73214787]
[1744162428063,9.7789,102.34,102.27,66.73214787]
[1744162428272,4.7199,102.35,102.25,66.73214787]
[1744162428467,1.95427008,102.34,102.24,509.16]
[1744162428782,9.7818,102.31,102.29,0.06251097]
[1744162429075,0.06549434,102.32,102.29,0.06251097]
[1744162430474,9.84639434,102.32,102.29,0.06251097]
[1744162430678,0.06549434,102.32,102.29,0.06251097]
[1744162430873,9.7823,102.31,102.29,0.06251097]
[1744162431079,0.06549434,102.32,102.29,0.06251097]
[1744162431777,4.6361,102.37,102.3,152.67214787]
[1744162432076,513.757,102.39,102.3,152.67214787]
[1744162432464,515.71031575,102.39,102.3,95.7226]
[1744162432664,515.71031575,102.39,102.3,85.94]
[1744162432871,0.06454466,102.36,102.33,0.06408923]
[1744162435276,0.06454466,102.36,102.27,90.4634]
[1744162435476,66.79669253,102.36,102.27,4.5634]
[1744162435783,9.0716,102.37,102.27,4.5634]
[1744162435974,1.95388823,102.36,102.27,71.29554787]
[1744162436175,1.95388823,102.36,102.27,4.5634]
[1744162436376,68.6860361,102.36,102.23,152.61214787]
[1744162436677,0.0748307,102.33,102.3,0.07351874]
[1744162437478,83.8548307,102.33,102.3,0.07351874]
[1744162438280,83.8548307,102.33,102.24,437.4459]
[1744162438479,83.8548307,102.33,102.24,427.6575]
[1744162438778,83.78,102.33,102.24,427.6575]
[1744162439383,3.67261887,102.32,102.24,427.6575]
[1744162439576,9.84623807,102.3,102.27,0.07349216]
[1744162439876,0.06293807,102.3,102.27,0.07349216]
[1744162441182,0.06293807,102.3,102.27,66.80564003]
[1744162441485,0.06293807,102.3,102.27,0.07349216]
[1744162443591,0.06293807,102.3,102.29,9.7837]
[1744162444399,1.95388823,102.36,102.29,76.51214787]
[1744162444583,1.95388823,102.36,102.28,83.76]
[1744162444584,1.95388823,102.36,102.34,66.73214787]
[1744162444888,4.4876,102.41,102.37,9.7754]
[1744162445094,4.4876,102.41,102.34,150.49214787]
[1744162445295,4.4876,102.41,102.34,83.76]
[1744162445590,0.06300938,102.39,102.36,0.06396285]
[1744162445994,0.06300938,102.39,102.36,66.79611072]
[1744162446194,0.06300938,102.39,102.36,0.06396285]
[1744162446694,0.06300938,102.39,102.36,9.84046285]
[1744162447183,0.06300938,102.39,102.38,9.7751]
[1744162447689,0.06300938,102.39,102.36,66.79611072]
[1744162447889,81.66,102.45,102.36,66.79611072]
[1744162448085,81.66,102.45,102.36,70.82391072]
[1744162448286,9.7699,102.44,102.38,66.73214787]
[1744162448485,81.66,102.45,102.36,4.0278]
[1744162448692,81.66,102.45,102.35,4.8464]
[1744162449190,0.07484196,102.41,102.39,0.07224163]
[1744162449396,81.62,102.52,102.4,66.73214787]
[1744162449699,4.4565,102.51,102.42,66.73214787]
[1744162449892,4.4565,102.51,102.4,66.73214787]
[1744162450094,1.95121951,102.5,102.4,66.73214787]
[1744162450600,0.06504533,102.46,102.44,66.79428364]
[1744162451085,0.06504533,102.46,102.44,9.83113577]
[1744162451283,0.06504533,102.46,102.44,66.79428364]
[1744162451490,0.06504533,102.46,102.45,9.7684]
[1744162451797,0.06504533,102.46,102.44,0.06213577]
[1744162453189,0.06504533,102.46,102.37,157.20454787]
[1744162453595,81.6,102.47,102.37,157.20454787]
[1744162454091,81.6,102.47,102.39,66.73214787]
[1744162454299,91.367,102.47,102.42,9.7706]
[1744162454600,81.6,102.47,102.39,66.73214787]
[1744162454796,1.95121951,102.5,102.43,9.7698]
[1744162455003,0.07424279,102.46,102.43,0.07093589]
[1744162455197,0.07424279,102.46,102.39,66.73214787]
[1744162455398,1.95121951,102.5,102.43,0.06236963]
[1744162455602,0.06732977,102.44,102.43,0.06236963]
[1744162455897,1.95121951,102.5,102.45,0.06200587]
[1744162456093,1.95121951,102.5,102.41,66.73214787]
[1744162456295,0.06401622,102.49,102.46,0.06179958]
[1744162456509,1.95121951,102.5,102.46,0.06179958]
[1744162456801,0.07393724,102.49,102.46,0.06179958]
[1744162458100,1.08002956,102.5,102.47,66.73214787]
[1744162458305,4.6044,102.59,102.49,66.73214787]
[1744162458996,4.6044,102.59,102.48,570.49214787]
[1744162459207,9.7594,102.55,102.5,9.7632]
[1744162459400,0.07110532,102.55,102.52,0.06225912]
[1744162459799,66.73214787,102.58,102.52,0.06225912]
[1744162459998,0.06838864,102.55,102.52,0.06225912]
[1744162460198,9.7604,102.54,102.49,9.7643]
[1744162460400,9.7604,102.54,102.52,0.06568317]
[1744162460596,0.07262652,102.53,102.52,0.06568317]
[1744162460902,309.73613009,102.7,102.52,1409.57783104]
[1744162461106,66.73214787,102.68,102.55,66.73214787]
[1744162461299,86.0881,102.69,102.55,66.73214787]
[1744162461300,66.73214787,102.65,102.55,66.73214787]
[1744162461600,4.5681,102.69,102.58,66.73214787]
[1744162461802,4.5681,102.69,102.59,4.0186]
[1744162462007,0.07133631,102.65,102.62,0.07379201]
[1744162462408,0.07133631,102.65,102.61,66.73214787]
[1744162462593,0.07133631,102.65,102.62,0.07305663]
[1744162462901,12.15709733,102.75,102.64,200.19644361]
[1744162463105,97.20159288,102.76,102.74,66.73214787]
[1744162463305,243.00398222,102.78,102.76,9.7388]
[1744162463609,243.00398222,102.78,102.74,66.73214787]
[1744162463803,243.00398222,102.78,102.77,66.73214787]
[1744162464006,243.00398222,102.78,102.72,148.21214787]
[1744162464208,0.07319667,102.77,102.75,0.0711576]
[1744162464508,0.07319667,102.77,102.69,66.73214787]
[1744162464709,9.42399667,102.77,102.66,66.73214787]
[1744162465003,9.40074898,102.76,102.66,66.73214787]
[1744162465206,90.8308,102.77,102.66,66.73214787]
[1744162465207,90.8308,102.77,102.69,66.73214787]
[1744162465407,90.8308,102.77,102.67,66.73214787]
[1744162465608,9.7402,102.75,102.67,9.7472]
[1744162465908,90.8308,102.77,102.72,0.0649547]
[1744162465909,0.06640535,102.74,102.72,0.0649547]
[1744162466099,0.06640535,102.74,102.64,66.73214787]
[1744162466299,1.94666147,102.74,102.64,66.73214787]
[1744162466808,11.68826147,102.74,102.64,66.73214787]
[1744162467010,1.94666147,102.74,102.64,66.73214787]
[1744162467210,0.06766813,102.7,102.68,0.0693261]
[1744162468113,1.94666147,102.74,102.68,66.80147397]
[1744162468410,1.94666147,102.74,102.7,66.73214787]
[1744162468612,1.94666147,102.74,102.69,9.7453]
[1744162468814,1.94666147,102.74,102.66,66.73214787]
[1744162468999,6.147e-05,102.74,102.71,66.73214787]
[1744162469205,4.8778,102.85,102.73,66.73214787]
[1744162469406,4.8778,102.85,102.75,66.73214787]
[1744162469604,83.15131686,102.84,102.73,66.73214787]
[1744162469914,0.06375865,102.8,102.77,0.06834044]
[1744162470314,0.06375865,102.8,102.75,66.73214787]
[1744162470517,0.06375865,102.8,102.77,0.07128521]
[1744162471019,9.7323,102.83,102.82,0.2919708]
[1744162471216,468.22,102.83,102.77,0.07128521]
[1744162471522,9.7379,102.78,102.69,76.47704787]
[1744162471719,82.56,102.79,102.69,76.47704787]
[1744162471918,82.56,102.79,102.69,66.73214787]
[1744162472114,92.2964,102.79,102.7,9.744]
[1744162472623,0.06853492,102.76,102.73,0.07244621]
[1744162473116,544.50068279,102.76,102.62,467.96]
[1744162473322,9.7444,102.71,102.63,66.73214787]
[1744162473512,82.56,102.73,102.62,467.96]
[1744162473717,82.56,102.73,102.61,66.73214787]
[1744162473923,151.23899883,102.73,102.61,66.73214787]
[1744162474220,84.50685096,102.73,102.63,66.73214787]
[1744162474523,0.06378069,102.68,102.66,0.07335746]
[1744162474916,84.50685096,102.73,102.65,66.73214787]
[1744162475117,9.7434,102.72,102.64,9.7501]
[1744162475315,0.06254498,102.68,102.66,0.07261434]
[1744162475617,84.50685096,102.73,102.61,614.73214787]
[1744162475922,0.07212678,102.68,102.66,0.0671239]
[1744162476322,84.50685096,102.73,102.61,614.73214787]
[1744162476515,0.06632676,102.68,102.66,0.06545263]
[1744162476917,84.50685096,102.73,102.64,76.48244787]
[1744162477125,0.06808565,102.68,102.66,0.06342217]
[1744162477424,66.73214787,102.71,102.6,82.56]
[1744162477626,66.73214787,102.67,102.52,993.56]
[1744162477829,66.73214787,102.67,102.54,66.73214787]
[1744162477830,550.44,102.66,102.54,66.73214787]
[1744162478032,66.73214787,102.63,102.53,0.1244]
[1744162478221,66.73214787,102.63,102.52,82.56]
[1744162478222,66.73214787,102.63,102.52,149.29214787]
[1744162478519,9.0045,102.62,102.5,66.73214787]
[1744162478825,82.56,102.61,102.53,9.7602]
[1744162479027,0.06327803,102.57,102.55,0.06623922]
[1744162482117,468.02,102.59,102.55,0.06623922]
[1744162482321,82.56,102.61,102.55,0.06623922]
[1744162482526,82.56,102.61,102.55,9.82503922]
[1744162482725,82.56,102.61,102.55,0.06623922]
[1744162483029,18.7575,102.62,102.55,0.06623922]
[1744162483228,82.58,102.65,102.56,66.73214787]
[1744162483433,0.07063705,102.6,102.56,66.73214787]
[1744162483727,0.07063705,102.6,102.54,66.73214787]
[1744162483928,0.07063705,102.6,102.57,0.06308888]
[1744162484130,82.58,102.65,102.57,0.06308888]
[1744162484326,0.0714229,102.6,102.57,0.06308888]
[1744162484523,0.0714229,102.6,102.53,617.33214787]
[1744162484729,0.0714229,102.6,102.57,0.06293161]
[1744162485031,4.5425,102.64,102.57,0.06293161]
[1744162485329,0.06514457,102.6,102.55,66.73214787]
[1744162485522,0.06514457,102.6,102.59,0.07347539]
[1744162486031,0.06514457,102.6,102.55,66.73214787]
[1744162486231,0.06514457,102.6,102.58,0.06532477]
[1744162487832,92.3302,102.65,102.59,9.7551]
[1744162488133,82.58,102.65,102.57,66.73214787]
[1744162488338,9.7519,102.63,102.58,9.7551]
[1744162488635,82.58,102.65,102.57,66.73214787]
[1744162489132,0.06253232,102.62,102.6,0.07264455]
[1744162489325,0.06253232,102.62,102.54,66.73214787]
[1744162489530,0.07105765,102.62,102.6,0.06310834]
[1744162489729,0.07105765,102.62,102.59,66.73214787]
[1744162489930,4.6199,102.68,102.61,66.73214787]
[1744162490132,0.07261534,102.62,102.6,0.06306006]
[1744162490332,4.6199,102.68,102.59,80.58]
[1744162490632,536.82013657,102.67,102.55,147.31214787]
[1744162490832,66.80495684,102.65,102.54,66.73214787]
[1744162491035,82.52855806,102.64,102.52,66.73214787]
[1744162491335,9.7557,102.59,102.52,66.73214787]
[1744162491722,9.7548,102.6,102.52,66.73214787]
[1744162491928,0.07293296,102.57,102.54,66.79585395]
[1744162492129,87.25975806,102.64,102.54,66.73214787]
[1744162492330,6.67975806,102.64,102.56,66.73214787]
[1744162492729,6.67975806,102.64,102.58,9.7555]
[1744162492938,6.67975806,102.64,102.56,66.73214787]
[1744162493341,9.752,102.63,102.58,9.7558]
[1744162493536,0.07477127,102.61,102.59,0.06279601]